fUST/lending_fUST_20250114
["ID","MTS","AMOUNT","RATE_DAILY","PERIOD"]
[348888482,1736856649606,-542.54,0.00021917,3]
[348888483,1736856649616,-30845.13,0.00021917,2]
[348888484,1736856649626,-500.0,0.00021917,3]
[348888485,1736856649635,-500.0,0.00021917,3]
[348888486,1736856649645,-508.54371617,0.00021917,3]
[348888487,1736856649654,-500.0,0.00021917,3]
[348888488,1736856649663,-652.7,0.00021917,3]
[348888489,1736856649673,-564.77,0.00021917,3]
[348888490,1736856649683,-500.0,0.00021917,3]
[348888491,1736856649693,-500.0,0.00021917,3]
[348888492,1736856649702,-500.0,0.00021917,3]
[348888493,1736856649711,-11217.31,0.00021917,3]
[348888494,1736856649721,-510.75402698,0.00021917,3]
[348888495,1736856649731,-500.0,0.00021917,3]
[348888496,1736856649740,-795.26,0.00021917,3]
[348888497,1736856649750,-2202.35,0.00021917,3]
[348888498,1736856649759,-500.0,0.00021917,3]
[348888499,1736856649769,-500.0,0.00021917,3]
[348888500,1736856649778,-46850.7,0.00021917,3]
[348888501,1736856649788,-1274.86,0.00021917,3]
[348888502,1736856649798,-519.32634292,0.00021917,3]
[348888503,1736856649807,-6119.57,0.00021917,2]
[348888504,1736856649816,-500.0,0.00021917,3]
[348888505,1736856649831,-2631.88,0.00021917,3]
[348888506,1736856649841,-7068.54,0.00021917,3]
[348888507,1736856649851,-500.0,0.00021917,3]
[348888508,1736856649862,-500.0,0.00021917,3]
[348888509,1736856649871,-500.0,0.00021917,3]
[348888510,1736856649882,-500.0,0.00021917,3]
[348888511,1736856649892,-1067.61,0.00021917,3]
[348888512,1736856649903,-2578.46,0.00021917,3]
[348888513,1736856649913,-500.0,0.00021917,3]
[348888514,1736856649923,-483.2521163,0.00021917,3]
[348888515,1736856649931,-500.0,0.00021917,3]
[348888516,1736856649941,-500.0,0.00021917,3]
[348888517,1736856649950,-2078.56,0.00021917,3]
[348888518,1736856649960,-519.68313211,0.00021917,3]
[348888519,1736856649969,-652.13,0.00021917,3]
[348888520,1736856649978,-1714.99,0.00021917,3]
[348888521,1736856649988,-507.64905233,0.00021917,3]
[348888522,1736856649997,-500.0,0.00021917,3]
[348888523,1736856650007,-500.0,0.00021917,3]
[348888524,1736856650017,-736.85,0.00021917,3]
[348888525,1736856650026,-500.0,0.00021917,3]
[348888526,1736856650036,-500.0,0.00021917,3]
[348888527,1736856650045,-500.0,0.00021917,3]
[348888528,1736856650055,-1276.54,0.00021917,3]
[348888529,1736856650064,-500.0,0.00021917,3]
[348888530,1736856650075,-500.85953805,0.00021917,3]
[348888531,1736856650084,-500.0,0.00021917,3]
[348888532,1736856650094,-500.0,0.00021917,3]
[348888533,1736856650103,-500.0,0.00021917,3]
[348888534,1736856650113,-500.0,0.00021917,3]
[348888535,1736856650122,-504.40092924,0.00021917,3]
[348888536,1736856650132,-350.4246439,0.00021917,3]
[348888537,1736856650142,-760.84,0.00021917,3]
[348888538,1736856650153,-500.0,0.00021917,3]
[348888539,1736856650162,-500.0,0.00021917,3]
[348888540,1736856650172,-500.0,0.00021917,3]
[348888541,1736856650181,-4906.46,0.00021917,3]
[348888542,1736856650190,-598.65,0.00021917,3]
[348888543,1736856650204,-648.30477983,0.00021917,3]
[348888544,1736856650214,-500.0,0.00021917,3]
[348888545,1736856650223,-648.63,0.00021917,3]
[348888546,1736856650233,-500.0,0.00021917,3]
[348888547,1736856650243,-2316.7,0.00021917,3]
[348888548,1736856650252,-500.0,0.00021917,3]
[348888549,1736856650261,-500.0,0.00021917,3]
[348888550,1736856650272,-512.35,0.00021917,3]
[348888551,1736856650282,-500.0,0.00021917,3]
[348888552,1736856650292,-580.81,0.00021917,3]
[348888553,1736856650301,-500.0,0.00021917,3]
[348888554,1736856650311,-500.0,0.00021917,3]
[348888555,1736856650320,-500.0,0.00021917,3]
[348888556,1736856650330,-500.0,0.00021917,3]
[348888557,1736856650341,-505.33301679,0.00021917,3]
[348888558,1736856650350,-500.0,0.00021917,3]
[348888559,1736856650360,-500.0,0.00021917,3]
[348888560,1736856650370,-500.0,0.00021917,3]
[348888561,1736856650380,-500.0,0.00021917,3]
[348888562,1736856650389,-500.0,0.00021917,3]
[348888563,1736856650399,-500.0,0.00021917,3]
[348888564,1736856650408,-506.26798127,0.00021917,3]
[348888565,1736856650418,-489.25939537,0.00021917,3]
[348888566,1736856650427,-523.31,0.00021917,3]
[348888567,1736856650438,-500.0,0.00021917,3]
[348888568,1736856650447,-500.0,0.00021917,3]
[348888569,1736856650457,-500.0,0.00021917,3]
[348888570,1736856650466,-151.0,0.00021917,2]
[348888571,1736856650475,-500.0,0.00021917,3]
[348888572,1736856650485,-159.15,0.00021917,2]
[348888573,1736856650494,-500.0,0.00021917,3]
[348888574,1736856650503,-500.0,0.00021917,3]
[348888575,1736856650514,-530.69,0.00021917,3]
[348888576,1736856650523,-500.0,0.00021917,3]
[348888577,1736856650533,-500.0,0.00021917,3]
[348888579,1736856650544,-500.0,0.00021917,3]
[348888580,1736856650553,-500.0,0.00021917,3]
[348888581,1736856650563,-500.0,0.00021917,3]
[348888582,1736856650572,-500.0,0.00021917,3]
[348888583,1736856650581,-4515.88,0.00021917,3]
[348888584,1736856650590,-500.0,0.00021917,3]
[348888585,1736856650600,-500.0,0.00021917,3]
[348888586,1736856650610,-1835.26,0.00021917,3]
[348888587,1736856650619,-569.89,0.00021917,3]
[348888588,1736856650629,-500.0,0.00021917,3]
[348888589,1736856650638,-450.56579906,0.00021917,3]
[348888590,1736856650647,-504.64620101,0.00021917,3]
[348888591,1736856650657,-500.0,0.00021917,3]
[348888592,1736856650667,-501.11764193,0.00021917,3]
[348888593,1736856650676,-500.0,0.00021917,3]
[348888594,1736856650686,-500.0,0.00021917,3]
[348888595,1736856650695,-500.0,0.00021917,3]
[348888596,1736856650705,-500.0,0.00021917,3]
[348888597,1736856650715,-500.0,0.00021917,3]
[348888598,1736856650724,-500.0,0.00021917,3]
[348888599,1736856650734,-500.0,0.00021917,3]
[348888600,1736856650743,-2667.01,0.00021917,3]
[348888601,1736856650752,-2147.3,0.00021917,3]
[348888602,1736856650762,-6981.31,0.00021917,3]
[348888603,1736856650771,-4749.18,0.00021917,3]
[348888604,1736856650780,-500.0,0.00021917,3]
[348888605,1736856650790,-500.0,0.00021917,3]
[348888606,1736856650799,-500.0,0.00021917,3]
[348888607,1736856650809,-500.0,0.00021917,3]
[348888608,1736856650820,-500.0,0.00021917,3]
[348888609,1736856650832,-500.0,0.00021917,3]
[348888610,1736856650842,-500.0,0.00021917,2]
[348888611,1736856650851,-500.0,0.00021917,3]
[348888612,1736856650860,-1140.66,0.00021917,3]
[348888613,1736856650870,-500.0,0.00021917,3]
[348888614,1736856650879,-500.0,0.00021917,3]
[348888615,1736856650889,-1000.0,0.00021917,2]
[348888616,1736856650898,-500.0,0.00021917,3]
[348888617,1736856650907,-500.0,0.00021917,3]
[348888618,1736856650917,-500.0,0.00021917,3]
[348888619,1736856650926,-500.0,0.00021917,3]
[348888620,1736856650937,-500.0,0.00021917,3]
[348888621,1736856650947,-1223.22,0.00021917,3]
[348888622,1736856650956,-500.0,0.00021917,3]
[348888623,1736856650965,-500.0,0.00021917,3]
[348888624,1736856650975,-500.0,0.00021917,3]
[348888625,1736856650986,-955.82,0.00021917,3]
[348888626,1736856650995,-500.0,0.00021917,3]
[348888627,1736856651004,-500.0,0.00021917,3]
[348888628,1736856651014,-500.0,0.00021917,3]
[348888629,1736856651023,-500.0,0.00021917,3]
[348888630,1736856651032,-257.75484345,0.00021917,3]
[348888631,1736856651042,-537.0313693,0.00021917,3]
[348888632,1736856651051,-1000.0,0.00021917,7]
[348888633,1736856651061,-1613.74,0.00021917,3]
[348888634,1736856651071,-500.0,0.00021917,3]
[348888635,1736856651081,-525.98111908,0.00021917,3]
[348888636,1736856651090,-348.78907599,0.00021917,3]
[348888637,1736856651100,-2296.1,0.00021917,3]
[348888638,1736856651109,-500.0,0.00021917,3]
[348888639,1736856651118,-500.0,0.00021917,3]
[348888640,1736856651127,-500.0,0.00021917,3]
[348888641,1736856651137,-500.0,0.00021917,3]
[348888642,1736856651146,-1925.53,0.00021917,3]
[348888643,1736856651156,-500.0,0.00021917,3]
[348888644,1736856651165,-500.0,0.00021917,3]
[348888645,1736856651175,-599.47,0.00021917,3]
[348888646,1736856651184,-1391.35,0.00021917,3]
[348888647,1736856651312,-500.0,0.00021917,3]
[348888648,1736856651323,-713.18,0.00021917,3]
[348888649,1736856651333,-500.0,0.00021917,3]
[348888650,1736856651343,-500.0,0.00021917,3]
[348888651,1736856651353,-576.29,0.00021917,3]
[348888652,1736856651363,-500.0,0.00021917,3]
[348888653,1736856651374,-697.264893,0.00021917,2]
[348888654,1736856651383,-500.0,0.00021917,3]
[348888655,1736856651392,-697.264893,0.00021917,2]
[348888656,1736856651402,-697.264893,0.00021917,2]
[348888657,1736856651411,-811.27,0.00021917,3]
[348888658,1736856651420,-697.264893,0.00021917,2]
[348888659,1736856651429,-697.264893,0.00021917,2]
[348888660,1736856651439,-697.264893,0.00021917,2]
[348888661,1736856651448,-1132.19,0.00021917,3]
[348888662,1736856651458,-697.264893,0.00021917,2]
[348888663,1736856651468,-697.264893,0.00021917,2]
[348888664,1736856651478,-500.0,0.00021917,3]
[348888665,1736856651489,-697.264893,0.00021917,2]
[348888666,1736856651498,-697.264893,0.00021917,2]
[348888667,1736856651507,-697.264893,0.00021917,2]
[348888668,1736856651517,-466.28418491,0.00021917,3]
[348888669,1736856651527,-697.264893,0.00021917,2]
[348888670,1736856651537,-697.264893,0.00021917,2]
[348888671,1736856651548,-697.264893,0.00021917,2]
[348888672,1736856651558,-500.0,0.00021917,3]
[348888673,1736856651567,-697.264893,0.00021917,2]
[348888674,1736856651578,-697.264893,0.00021917,2]
[348888675,1736856651587,-721.42,0.00021917,3]
[348888676,1736856651597,-500.0,0.00021917,3]
[348888677,1736856651606,-854.26,0.00021917,3]
[348888678,1736856651615,-500.0,0.00021917,3]
[348888679,1736856651625,-161.44569404,0.00021954,2]
[348888680,1736856651634,-161.44569404,0.00021954,2]
[348888681,1736856651644,-161.44569404,0.00021954,2]
[348888682,1736856651653,-161.44569404,0.00021954,2]
[348888683,1736856651662,-161.44569404,0.00021954,2]
[348888684,1736856651671,-161.44569404,0.00021954,2]
[348888685,1736856651680,-161.44569404,0.00021954,2]
[348888686,1736856651690,-161.44569404,0.00021954,2]
[348888687,1736856651699,-161.44569404,0.00021954,2]
[348888688,1736856651708,-161.44569404,0.00021954,2]
[348888689,1736856651717,-161.44569404,0.00021954,2]
[348888690,1736856651727,-161.44,0.00021954,2]
[348888691,1736856651736,-152.94855225,0.00021954,2]
[348888692,1736856651746,-152.94855225,0.00021954,2]
[348888693,1736856651756,-152.94855225,0.00021954,2]
[348888694,1736856651766,-152.94855225,0.00021954,2]
[348888695,1736856651776,-152.94855225,0.00021954,2]
[348888696,1736856651786,-152.94855225,0.00021954,2]
[348888697,1736856651797,-152.94855225,0.00021954,2]
[348888698,1736856651806,-152.94855225,0.00021954,2]
[348888699,1736856651816,-152.94855225,0.00021954,2]
[348888700,1736856651830,-152.94855225,0.00021954,2]
[348888701,1736856651840,-152.94855225,0.00021954,2]
[348888702,1736856651849,-152.94855225,0.00021954,2]
[348888703,1736856651859,-152.94855225,0.00021954,2]
[348888704,1736856651869,-152.94855225,0.00021954,2]
[348888705,1736856651879,-152.94855225,0.00021954,2]
[348888706,1736856651888,-152.94855225,0.00021954,2]
[348888707,1736856651898,-152.94855225,0.00021954,2]
[348888708,1736856651907,-3332.76810797,0.00021954,2]
[348888709,1736856651916,-535.0,0.00021967,2]
[348888710,1736856651926,-2073.0,0.00021967,2]
[348888711,1736856651936,-2286.0,0.00021967,2]
[348888712,1736856651947,-697.264893,0.00021967,7]
[348888713,1736856651957,-697.264893,0.00021967,7]
[348888714,1736856651966,-151.0,0.00021972,7]
[348888715,1736856651976,-500.0,0.00021973,2]
[348888716,1736856651986,-520.13321862,0.00021973,2]
[348888717,1736856651995,-157.66496293,0.00021973,2]
[348888718,1736856652005,-151.56860726,0.00021973,2]
[348888719,1736856652015,-160.0666073,0.00021973,2]
[348888720,1736856652023,-269.12181815,0.00021973,2]
[348888721,1736856652033,-257.43165421,0.00021973,2]
[348888722,1736856652043,-179.7139493,0.00021973,2]
[348888723,1736856652052,-357.99580065,0.00021973,2]
[348888724,1736856652061,-500.0,0.00021973,2]
[348888725,1736856652072,-505.50786307,0.00021973,2]
[348888726,1736856652082,-152.94855225,0.00021975,2]
[348888727,1736856652092,-151.0,0.00021991,6]
[348888728,1736856652101,-698.29,0.00022,5]
[348888729,1736856652111,-5381.65,0.00022,14]
[348888730,1736856652120,-2121.49,0.00022,14]
[348888731,1736856652130,-182213.51391148,0.00022,2]
[348888732,1736856652139,-1000.0,0.00022,22]
[348888733,1736856652150,-11989.88,0.00022,2]
[348888734,1736856652159,-151.0,0.00022,7]
[348888735,1736856652168,-314.027794,0.00022,7]
[348888736,1736856652178,-314.027794,0.00022,7]
[348888737,1736856652187,-314.027794,0.00022,7]
[348888738,1736856652197,-314.027794,0.00022,7]
[348888739,1736856652206,-253.649934,0.00022,7]
[348888740,1736856652216,-151.0,0.00022,7]
[348888741,1736856652226,-151.0,0.00022,7]
[348888742,1736856652235,-533.339952,0.00022,7]
[348888743,1736856652245,-533.339952,0.00022,7]
[348888744,1736856652255,-533.339952,0.00022,7]
[348888745,1736856652264,-533.339952,0.00022,7]
[348888746,1736856652276,-151.0,0.00022,7]
[348888747,1736856652285,-273.901558,0.00022,7]
[348888748,1736856652295,-273.901558,0.00022,7]
[348888749,1736856652305,-273.901558,0.00022,7]
[348888750,1736856652315,-273.901558,0.00022,7]
[348888751,1736856652324,-6000.0,0.00022,3]
[348888752,1736856652334,-151.0,0.00022,7]
[348888753,1736856652344,-697.264893,0.00022,7]
[348888754,1736856652353,-697.264894,0.00022,7]
[348888755,1736856652363,-160.0,0.00022004,5]
[348888756,1736856652372,-4569.08535778,0.00022038,2]
[348888757,1736856652382,-502.03835027,0.00022054,14]
[348888758,1736856652392,-314.027794,0.00022054,7]
[348888759,1736856652402,-314.027794,0.00022054,7]
[348888760,1736856652412,-314.027794,0.00022054,7]
[348888761,1736856652421,-314.027794,0.00022054,7]
[348888762,1736856652431,-314.027794,0.00022054,7]
[348888763,1736856652440,-314.027794,0.00022054,7]
[348888764,1736856652450,-314.027794,0.00022054,7]
[348888765,1736856652459,-314.027794,0.00022054,7]
[348888766,1736856652470,-517.25,0.00022054,3]
[348888767,1736856652482,-314.027794,0.00022054,7]
[348888768,1736856652492,-314.027794,0.00022054,7]
[348888769,1736856652502,-500.0,0.00022054,3]
[348888770,1736856652511,-575.44522913,0.00022054,3]
[348888771,1736856652521,-500.0,0.00022054,3]
[348888772,1736856652530,-500.0,0.00022054,3]
[348888773,1736856652540,-500.0,0.00022054,3]
[348888774,1736856652549,-500.0,0.00022054,3]
[348888775,1736856652558,-500.0,0.00022054,3]
[348888776,1736856652567,-500.0,0.00022054,3]
[348888777,1736856652578,-500.0,0.00022054,3]
[348888778,1736856652587,-573.54837292,0.00022054,3]
[348888779,1736856652596,-500.0,0.00022054,3]
[348888780,1736856652605,-500.0,0.00022054,3]
[348888781,1736856652615,-458.66460824,0.00022054,3]
[348888782,1736856652624,-503.14390383,0.00022054,3]
[348888783,1736856652633,-500.0,0.00022054,3]
[348888784,1736856652642,-500.0,0.00022054,3]
[348888785,1736856652651,-500.0,0.00022054,3]
[348888786,1736856652661,-500.0,0.00022054,3]
[348888787,1736856652670,-500.0,0.00022054,3]
[348888788,1736856652680,-500.0,0.00022054,3]
[348888789,1736856652689,-500.0,0.00022054,3]
[348888790,1736856652699,-500.0,0.00022054,3]
[348888791,1736856652708,-290.34858052,0.00022054,3]
[348888792,1736856652717,-500.0,0.00022054,3]
[348888793,1736856652727,-555.89,0.00022054,3]
[348888794,1736856652736,-500.0,0.00022054,3]
[348888795,1736856652746,-500.0,0.00022054,3]
[348888796,1736856652756,-500.0,0.00022054,3]
[348888797,1736856652765,-947.37,0.00022054,3]
[348888798,1736856652774,-500.0,0.00022054,3]
[348888799,1736856652783,-500.0,0.00022054,3]
[348888800,1736856652792,-500.0,0.00022054,3]
[348888801,1736856652801,-500.0,0.00022054,3]
[348888802,1736856652811,-500.0,0.00022054,3]
[348888803,1736856652821,-519.04,0.00022054,3]
[348888804,1736856652833,-500.0,0.00022054,3]
[348888805,1736856652842,-570.13080705,0.00022054,3]
[348888809,1736856784081,4806.80889136,0.00023988,30]
[348888810,1736856784514,4806.80889136,0.00023984,30]
[348888811,1736856784813,4806.80889136,0.00023999,30]
[348888819,1736857237157,160.810208,0.00013973,2]
[348888822,1736857627148,-362.78527713,0.00018326,2]
[348888823,1736857627180,-362.78527713,0.00018511,2]
[348888824,1736857627219,-1591.10222066,0.00018787,5]
[348888825,1736857627242,-1456.0,0.00018787,14]
[348888826,1736857627265,-300.0,0.00018883,2]
[348888827,1736857627288,-11378.41209559,0.00018884,2]
[348888828,1736857635310,-866.78744461,0.00018695,2]
[348888847,1736857794152,449.82,0.00017917,2]
[348888911,1736857832358,-307.93985881,0.00017737,2]
[348888914,1736857832370,-1726.06014119,0.00017737,2]
[348888915,1736857832380,-10.89792181,0.00017916,2]
[348888918,1736857832392,-289.10207819,0.00017916,2]
[348888920,1736857832401,-1734.0,0.00017916,2]
[348888921,1736857832412,-24450.18,0.00017917,2]
[348888924,1736857832422,-2656.5532403,0.00018569,2]
[348888925,1736857832431,-199.82297968,0.0001881,2]
[348888927,1736857832440,-5895.0579411,0.00018891,2]
[348888929,1736857832450,-1186.79351168,0.000189,2]
[348888932,1736857832460,-357.92271517,0.00019,2]
[348888933,1736857832469,-221.00372841,0.00019,2]
[348888935,1736857832478,-516.51359912,0.00019078,2]
[348888938,1736857832488,-1198.20822441,0.00019178,11]
[348888940,1736857832504,-289.79,0.00019178,11]
[348888951,1736857832599,-96.56185398,0.00019178,11]
[348888954,1736857832610,-636.64261421,0.00019178,11]
[348888956,1736857832620,-164.572464,0.00019178,2]
[348888958,1736857832629,-327.154,0.00019437,2]
[348888960,1736857832638,-420.0,0.0001955,2]
[348888962,1736857832647,-516.51359905,0.00019725,2]
[348888964,1736857832658,-633.43055025,0.0002,2]
[348888966,1736857832671,-1291.33109086,0.0002,2]
[348888969,1736857832691,-286.15954619,0.0002,2]
[348888971,1736857832701,-155.18,0.00020171,2]
[348888973,1736857832710,-516.51359905,0.00020372,2]
[348888975,1736857832720,-466.157,0.0002095,2]
[348888977,1736857832729,-516.51359905,0.00021019,2]
[348888979,1736857832747,-153.0,0.00021303,2]
[348888981,1736857832758,-153.0,0.00021303,2]
[348888983,1736857832767,-153.0,0.00021303,2]
[348888985,1736857832776,-153.0,0.00021303,2]
[348888987,1736857832785,-153.0,0.00021303,2]
[348888989,1736857832794,-153.0,0.00021303,2]
[348888991,1736857832803,-153.0,0.00021303,2]
[348888993,1736857832813,-153.0,0.00021303,2]
[348888995,1736857832822,-153.0,0.00021303,2]
[348888997,1736857832831,-153.0,0.00021303,2]
[348888999,1736857832840,-153.0,0.00021303,2]
[348889001,1736857832849,-153.0,0.00021303,2]
[348889003,1736857832859,-153.0,0.00021303,2]
[348889005,1736857832868,-153.0,0.00021303,2]
[348889007,1736857832877,-153.0,0.00021303,2]
[348889009,1736857832886,-153.0,0.00021303,2]
[348889011,1736857832895,-153.0,0.00021303,2]
[348889013,1736857832904,-153.0,0.00021303,2]
[348889015,1736857832914,-153.0,0.00021303,2]
[348889017,1736857832923,-153.0,0.00021303,2]
[348889019,1736857832933,-153.0,0.00021303,2]
[348889021,1736857832943,-153.0,0.00021303,2]
[348889023,1736857832952,-583.0,0.00021333,2]
[348889025,1736857832961,-500.0,0.00021473,7]
[348889027,1736857832971,-40642.70115373,0.000215,2]
[348889029,1736857832980,-516.51359905,0.00021667,2]
[348889031,1736857832989,-271.1189986,0.00021817,2]
[348889033,1736857833000,-169.72602668,0.00021817,2]
[348889035,1736857833010,-1011.58059946,0.00021839,2]
[348889037,1736857833019,-1382.50632022,0.000219,2]
[348889039,1736857833028,-178.22815074,0.00021916,2]
[348889041,1736857833038,-577.70673052,0.00021916,2]
[348889043,1736857833047,-500.0,0.00021916,2]
[348889045,1736857833056,-504.70337052,0.00021917,3]
[348889047,1736857833066,-500.0,0.00021917,3]
[348889048,1736857833075,-500.0,0.00021917,3]
[348889049,1736857833085,-500.0,0.00021917,3]
[348889050,1736857833094,-500.0,0.00021917,3]
[348889051,1736857833103,-500.0,0.00021917,3]
[348889052,1736857833112,-500.0,0.00021917,3]
[348889053,1736857833122,-500.0,0.00021917,3]
[348889054,1736857833131,-500.0,0.00021917,3]
[348889055,1736857833140,-411.97524175,0.00021917,3]
[348889056,1736857833150,-501.21813842,0.00021917,3]
[348889057,1736857833160,-500.0,0.00021917,3]
[348889058,1736857833171,-500.0,0.00021917,3]
[348889059,1736857833182,-500.0,0.00021917,3]
[348889060,1736857833191,-500.0,0.00021917,3]
[348889061,1736857833201,-500.0,0.00021917,3]
[348889062,1736857833211,-500.0,0.00021917,3]
[348889063,1736857833220,-558.47,0.00021917,3]
[348889064,1736857833229,-500.0,0.00021917,3]
[348889065,1736857833239,-567.74,0.00021917,3]
[348889066,1736857833250,-501.84002435,0.00021917,3]
[348889067,1736857833259,-502.0761363,0.00021917,3]
[348889068,1736857833269,-500.0,0.00021917,3]
[348889069,1736857833278,-500.0,0.00021917,3]
[348889070,1736857833288,-321.84887538,0.00021917,3]
[348889071,1736857833297,-500.0,0.00021917,3]
[348889072,1736857833306,-500.0,0.00021917,3]
[348889073,1736857833315,-500.0,0.00021917,3]
[348889075,1736857833324,-500.0,0.00021917,3]
[348889077,1736857833334,-500.0,0.00021917,3]
[348889079,1736857833343,-200.0,0.00021917,3]
[348889081,1736857833353,-500.0,0.00021917,3]
[348889083,1736857833364,-500.0,0.00021917,3]
[348889085,1736857833373,-500.0,0.00021917,3]
[348889087,1736857833382,-500.0,0.00021917,3]
[348889089,1736857833392,-519.00593908,0.00021917,3]
[348889090,1736857833401,-500.0,0.00021917,3]
[348889092,1736857833412,-518.55943633,0.00021917,3]
[348889094,1736857833421,-500.0,0.00021917,3]
[348889096,1736857833431,-500.89823148,0.00021917,3]
[348889099,1736857833441,-500.0,0.00021917,3]
[348889100,1736857833450,-500.0,0.00021917,3]
[348889102,1736857833460,-500.0,0.00021917,3]
[348889104,1736857833470,-500.0,0.00021917,3]
[348889106,1736857833480,-524.51461275,0.00021917,3]
[348889108,1736857833489,-515.61307243,0.00021917,3]
[348889110,1736857833499,-501.31531326,0.00021917,3]
[348889113,1736857833509,-500.0,0.00021917,3]
[348889115,1736857833518,-500.0,0.00021917,3]
[348889117,1736857833528,-500.0,0.00021917,3]
[348889119,1736857833538,-500.0,0.00021917,3]
[348889121,1736857833547,-500.0,0.00021917,3]
[348889123,1736857833556,-500.0,0.00021917,3]
[348889124,1736857833566,-500.0,0.00021917,3]
[348889127,1736857833576,-500.0,0.00021917,3]
[348889129,1736857833585,-644.18,0.00021917,3]
[348889131,1736857833594,-500.0,0.00021917,3]
[348889133,1736857833604,-500.0,0.00021917,3]
[348889134,1736857833613,-500.0,0.00021917,3]
[348889136,1736857833624,-500.0,0.00021917,3]
[348889138,1736857833633,-500.0,0.00021917,3]
[348889140,1736857833642,-500.0,0.00021917,3]
[348889142,1736857833652,-500.0,0.00021917,3]
[348889144,1736857833662,-500.0,0.00021917,3]
[348889146,1736857833671,-466.00541411,0.00021917,3]
[348889148,1736857833681,-500.0,0.00021917,3]
[348889150,1736857833691,-500.0,0.00021917,3]
[348889153,1736857833704,-500.0,0.00021917,3]
[348889155,1736857833715,-535.05973139,0.00021917,3]
[348889157,1736857833724,-606.38982844,0.00021917,3]
[348889159,1736857833733,-845.22,0.00021917,3]
[348889161,1736857833743,-500.0,0.00021917,3]
[348889163,1736857833752,-500.0,0.00021917,3]
[348889165,1736857833761,-500.0,0.00021917,3]
[348889167,1736857833772,-500.0,0.00021917,3]
[348889169,1736857833781,-500.0,0.00021917,3]
[348889171,1736857833791,-500.0,0.00021917,3]
[348889173,1736857833800,-500.0,0.00021917,3]
[348889175,1736857833809,-500.0,0.00021917,3]
[348889177,1736857833819,-500.0,0.00021917,3]
[348889179,1736857833828,-500.0,0.00021917,3]
[348889181,1736857833838,-514.99823659,0.00021917,3]
[348889183,1736857833848,-500.0,0.00021917,3]
[348889185,1736857833858,-500.0,0.00021917,3]
[348889186,1736857833867,-500.0,0.00021917,3]
[348889187,1736857833878,-1113.97,0.00021917,3]
[348889188,1736857833888,-500.0,0.00021917,3]
[348889189,1736857833897,-704.3,0.00021917,3]
[348889190,1736857833908,-500.0,0.00021917,3]
[348889191,1736857833918,-573.11,0.00021917,3]
[348889192,1736857833927,-500.0,0.00021917,3]
[348889193,1736857833937,-839.5,0.00021917,3]
[348889194,1736857833946,-500.0,0.00021917,3]
[348889195,1736857833956,-548.31365033,0.00021917,3]
[348889196,1736857833966,-500.0,0.00021917,3]
[348889197,1736857833975,-500.0,0.00021917,3]
[348889198,1736857833985,-500.0,0.00021917,3]
[348889199,1736857833995,-500.0,0.00021917,3]
[348889200,1736857834004,-500.0,0.00021917,3]
[348889201,1736857834013,-500.0,0.00021917,3]
[348889202,1736857834023,-500.0,0.00021917,3]
[348889203,1736857834033,-500.0,0.00021917,3]
[348889204,1736857834043,-500.0,0.00021917,3]
[348889205,1736857834052,-500.0,0.00021917,3]